Workbook

Sheet MENU
B8: On choisit sa course
B10: REUNION | C10: 1
B11: COURSE | C11: 1

Sheet COURSE
A1: No | B1: Nom | C1: Dist. | D1: Sexe | E1: Co | F1: Jockey | G1: Performances | H1: Cotes
C2: Poids | D2: age | F2: Entraineur
A3: 1 | B3: LA ROSELIERE | C3: 60.5 | D3: F5 | E3: 8 | F3: Perrette Q. | G3: 7p1p(20)9p16p9p1p9p11p4p12p6p(19)1p | H3: 9.4
F4: Le Dren Doleuze R.
A5: 2 | B5: BEST WIN | C5: 60 | D5: F4 | E5: 4 | F5: Boche D. | G5: 7p3p7p(20)3p3p1p1p2p | H5: 15.0
F6: Gadbin (s) L.
A7: 3 | B7: LILI BLUE | C7: 59 | D7: F6 | E7: 3 | F7: Le Lay Mlle A. | G7: 2p3p8p(20)8p4p5p2p1p1p1p9p(19)12p | H7: 7.8
F8: Audouin B.
A9: 4 | B9: KING COBRA | C9: 58 | D9: H5 | E9: 7 | F9: Mendizabal I. | G9: 3p7p4p5p14p(20)7p1p7p2p2p2p7p | H9: 10.0
F10: Lotoux (s) C.
A11: 5 | B11: TIRANO | C11: 58 | D11: H8 | E11: 1 | F11: Hardouin E. | G11: 7p2p13p1p2p3p2p(20)2p(19)3p2p(18)3p0p | H11: 12.0
F12: Hickst W.
A13: 6 | B13: GLADYS SENORA | C13: 57.5 | D13: F4 | E13: 12 | F13: Cabre J. | G13: 1p2p3p(20)1p2p2p2p5p3p6p3p4p | H13: 8.5
F14: Barberot (s) Y.
A15: 7 | B15: T'BOLT | C15: 57.5 | D15: H5 | E15: 5 | F15: Maillot S. | G15: 1p10p1p(20)3p3p3p(19)7p7p1p(18)2p | H15: 12.0
F16: Kobayashi S.
A17: 8 | B17: TOTEM | C17: 56 | D17: H6 | E17: 9 | F17: Androuin M. | G17: 3p6p(20)1p2p2p3p9p3p1p3p(19)6p9p | H17: 12.0
F18: Fertillet P.j.d.
A19: 9 | B19: LE PETIT GEGENE | C19: 56 | D19: H4 | E19: 11 | F19: Guillochon J. | G19: 1p1p1p(20)10p3p1p10p7p3p5p | H19: 11.0
F20: Gadbin (s) L.
A21: 10 | B21: MILLTOP | C21: 55.5 | D21: H5 | E21: 6 | F21: Guyon M. | G21: 5p2p4p2p3p(20)Th7h4h3h3h7hTh | H21: 5.4
F22: Reynier J.
A23: 11 | B23: VANCOUVER DU GUERN | C23: 55 | D23: H5 | E23: 13 | F23: Chuette Mlle S. | G23: 1p1p9p2p7p3p(20)6h6s6p1h5p2p | H23: 16.0
F24: Juillet G.
A25: 12 | B25: VEGA MAGIC | C25: 54.5 | D25: H4 | E25: 14 | F25: Roussel Ale. | G25: 5p7p6p(20)1p1p5p7p(19)8p2p | H25: 18.0
F26: Monfort (s) Ed.
A27: 13 | B27: DALIGAR | C27: 54 | D27: M5 | E27: 2 | F27: D' Andigne O. | G27: 17p14p8p1p6p5p(20)15p8p5p4p8p4p | H27: 51.0
F28: De Mieulle (s) J.
A29: 14 | B29: AMARHALEN | C29: 53.5 | D29: F4 | E29: 10 | F29: Cieslik Mlle E. | G29: 7p3p8p16p11p4p10p(20)11p4p2p1p1p | H29: 40.0
F30: Thueux E.

Sheet Simple gagnant
D5: N° PMU CHEVAL 1 | F5: N° PMU CHEVAL 2 | H5: N° PMU CHEVAL 3 | J5: N° PMU CHEVAL 4 | N5: BENEFICE RECHERCHE
A6: CHEVAUX > | D6: 3 | F6: 4 | H6: 11 | J6: 9 | N6: 30
A8: COTES REELLES > | D8: 3.7 | F8: 6 | H8: 7.1 | J8: 8.6
A10: MONTANT A JOUER > | D10: =IF(D8="","",$AA20) -> 26.50237515 | F10: =IF(F8="","",AA21) -> 16.34313134 | H10: =IF(H8="","",AA22) -> 13.81109691 | J10: =IF(J8="","",AA23) -> 11.40218466
A12: TOTAL DES MISES > | F12: =SUM(D10:J10) -> 68.05878807
A17: Si l'un des chevaux arrive premier, alors vous ramassez le bénéfice recherché | W17: Bénéfice souhaitée > | X17: =N6 -> 30 | Z17: Total mises | AA17: =SUM(AA20:AA26) -> 68.05878807
A19: COCHER LE GAGNANT > | V19: Cotes | W19: Rapport | X19: Coef de proportionnalité | Y19: bénéfice souhaité | Z19: Coef de Répartition | AA19: Placé gagnant Miser | AB19: Gains (Mise x rapport) | AC19: Bénéfice obtenu (Gains - Mise | AD19: Gains pour 1€ | AE19: Bénéfice
U20: =D6 -> 3 | V20: =IF(D8="","",D8) -> 3.7 | W20: =IF(V20="","",V20-1) -> 2.7 | X20: =IF(V20="","",1/V20) -> 0.2702702703 | Y20: =IF(V20="","",$X$17) -> 30 | Z20: =IF(V20="","",1/(1-SUM($X$20:$X$23))) -> 3.268626269 | AA20: =IF(V20="","",X20*Y20*Z20) -> 26.50237515 | AB20: =IF(V20="","",AA20*V20) -> 98.05878807 | AC20: =IF(V20="","",AB20-$H$2) -> 98.05878807 | AE20: =IF(AD20="","",AA20*AD20-$H$2) -> 
A21: GAINS NET > | D21: =IF(D19="","",(D10*D8)-$F$12) ->  | F21: =IF(F19="","",(F10*F8)-$F$12) ->  | H21: =IF(H19="","",(H10*H8)-$F$12) ->  | J21: =IF(J19="","",(J10*J8)-$F$12) ->  | U21: =F6 -> 4 | V21: =IF(F8="","",F8) -> 6 | W21: =IF(V21="","",V21-1) -> 5 | X21: =IF(V21="","",1/V21) -> 0.1666666667 | Y21: =IF(V21="","",$X$17) -> 30 | Z21: =IF(V21="","",1/(1-SUM($X$20:$X$23))) -> 3.268626269 | AA21: =IF(V21="","",X21*Y21*Z21) -> 16.34313134 | AB21: =IF(V21="","",AA21*V21) -> 98.05878807 | AC21: =IF(V21="","",AB21-$H$2) -> 98.05878807 | AE21: =IF(AD21="","",AA21*AD21-$H$2) -> 
U22: =H6 -> 11 | V22: =IF(H8="","",H8) -> 7.1 | W22: =IF(V22="","",V22-1) -> 6.1 | X22: =IF(V22="","",1/V22) -> 0.1408450704 | Y22: =IF(V22="","",$X$17) -> 30 | Z22: =IF(V22="","",1/(1-SUM($X$20:$X$23))) -> 3.268626269 | AA22: =IF(V22="","",X22*Y22*Z22) -> 13.81109691 | AB22: =IF(V22="","",AA22*V22) -> 98.05878807 | AC22: =IF(V22="","",AB22-$H$2) -> 98.05878807 | AE22: =IF(AD22="","",AA22*AD22-$H$2) -> 
U23: =J6 -> 9 | V23: =IF(J8="","",J8) -> 8.6 | W23: =IF(V23="","",V23-1) -> 7.6 | X23: =IF(V23="","",1/V23) -> 0.1162790698 | Y23: =IF(V23="","",$X$17) -> 30 | Z23: =IF(V23="","",1/(1-SUM($X$20:$X$23))) -> 3.268626269 | AA23: =IF(V23="","",X23*Y23*Z23) -> 11.40218466 | AB23: =IF(V23="","",AA23*V23) -> 98.05878807 | AC23: =IF(V23="","",AB23-$H$2) -> 98.05878807 | AE23: =IF(AD23="","",AA23*AD23-$H$2) -> 

Sheet Simple place
B2: Estimateur de rapports simple placé
A5: N° | B5: 1 | C5: 2 | D5: 3 | E5: 4 | F5: 5 | G5: 6 | H5: 7 | I5: 8 | J5: 9 | K5: 10 | L5: 11 | M5: 12 | N5: 13 | O5: 14 | P5: 15 | Q5: 16 | R5: 17 | S5: 18 | T5: 19 | U5: 20
A6: Cotes reelles > | B6: 9,4 | C6: 15,0 | D6: 7,8 | E6: 10,0 | F6: 12,0 | G6: 8,5 | H6: 12,0 | I6: 12,0 | J6: 11,0 | K6: 5,4 | L6: 16,0 | M6: 18,0 | N6: 51,0 | O6: 40,0
A8: Montants > | B8: =IF(OR(B6="",B6="NP"),"",B6*0.2+1) -> 2.88 | C8: 4 | D8: 2.56 | E8: 3 | F8: 3.4 | G8: 2.7 | H8: 3.4 | I8: 3.4 | J8: 3.2 | K8: 2.08 | L8: 4.2 | M8: 4.6 | N8: 11.2 | O8: 9
A9: estimés
A11: Arrivée >
A12: Gains Réel >
A13: Estimée > | B13: =IF(ISERROR(HLOOKUP(B11,$B$5:$U$8,3,FALSE)),"",HLOOKUP(B11,$B$5:$U$8,3,FALSE)) ->  | C13: =IF(ISERROR(HLOOKUP(C11,$B$5:$U$8,3,FALSE)),"",HLOOKUP(C11,$B$5:$U$8,3,FALSE)) -> 
B130: 2 | C130: 1.4
B131: 2.5 | C131: 1.6
B132: 3 | C132: 1.7
B133: 3.5 | C133: 1.7
B134: 4.5 | C134: 2
B135: 5 | C135: 2.1
B136: 5.5 | C136: 2.1
B137: 6 | C137: 2.2
B138: 7 | C138: 2.4
B139: 8 | C139: 2.7
B140: 9 | C140: 2.8
B141: 10 | C141: 3.1
B142: 11 | C142: 3.2
B143: 12 | C143: 3.4
B144: 13 | C144: 3.6
B145: 14 | C145: 3.8
B146: 15 | C146: 3.8
B147: 16 | C147: 4
B148: 17 | C148: 4.2
B149: 18 | C149: 4.2 | H149: 41
B150: 19 | C150: 4.5 | H150: =H149/2/2*0.85 -> 8.7125
B151: 20 | C151: 4.7
B152: 21 | C152: 5.3
B153: 22 | C153: 5.4
B154: 23 | C154: 5.4
B155: 24 | C155: 5.4
B156: 25 | C156: 5.8
B157: 26 | C157: 5.8
B158: 27 | C158: 6.2
B159: 28 | C159: 6.2
B160: 29 | C160: 6.2
B161: 30 | C161: 7
B162: 31
B163: 32
B164: 33
B165: 34
B166: 35

Sheet Cotes
C3: 15:44:16
B4: N° | C4: Cotes | F4: N° | G4: Cotes | J4: N° | K4: Cotes | N4: N° | O4: Cotes | R4: N° | S4: Cotes | V4: N° | W4: Cotes
A5: Date | B5: 10 | C5: 5,4 | E5: =IF(AND(G5<>"",G5<>"NP"),CHOOSE(SIGN(G5-VLOOKUP(F5,B$5:C$20,2,0))+2,"ê","è","é"),"") ->  | I5: =IF(AND(K5<>"",K5<>"NP"),CHOOSE(SIGN(K5-VLOOKUP(J5,B$5:C$20,2,0))+2,"ê","è","é"),"") ->  | M5: =IF(AND(O5<>"",O5<>"NP"),CHOOSE(SIGN(O5-VLOOKUP(N5,B$5:C$20,2,0))+2,"ê","è","é"),"") ->  | Q5: =IF(AND(S5<>"",S5<>"NP"),CHOOSE(SIGN(S5-VLOOKUP(R5,B$5:C$20,2,0))+2,"ê","è","é"),"") ->  | U5: =IF(AND(W5<>"",W5<>"NP"),CHOOSE(SIGN(W5-VLOOKUP(V5,B$5:C$20,2,0))+2,"ê","è","é"),"") -> 
A6: 2021-06-22 | B6: 3 | C6: 7,8 | E6: =IF(AND(G6<>"",G6<>"NP"),CHOOSE(SIGN(G6-VLOOKUP(F6,B$5:C$20,2,0))+2,"ê","è","é"),"") ->  | I6: =IF(AND(K6<>"",K6<>"NP"),CHOOSE(SIGN(K6-VLOOKUP(J6,B$5:C$20,2,0))+2,"ê","è","é"),"") ->  | M6: =IF(AND(O6<>"",O6<>"NP"),CHOOSE(SIGN(O6-VLOOKUP(N6,B$5:C$20,2,0))+2,"ê","è","é"),"") ->  | Q6: =IF(AND(S6<>"",S6<>"NP"),CHOOSE(SIGN(S6-VLOOKUP(R6,B$5:C$20,2,0))+2,"ê","è","é"),"") ->  | U6: =IF(AND(W6<>"",W6<>"NP"),CHOOSE(SIGN(W6-VLOOKUP(V6,B$5:C$20,2,0))+2,"ê","è","é"),"") -> 
B7: 6 | C7: 8,5 | T7: =IF(OR(T6="",T6="NP"),"",T6*0.2+1) -> 
B8: 1 | C8: 9,4
B9: 4 | C9: 10,0
B10: 9 | C10: 11,0
B11: 5 | C11: 12,0
B12: 7 | C12: 12,0
B13: 8 | C13: 12,0
B14: 2 | C14: 15,0
B15: 11 | C15: 16,0
B16: 12 | C16: 18,0
B17: 14 | C17: 40,0
B18: 13 | C18: 51,0
B19: 15
B20: 16
B21: 17
B22: 18
B23: 19
B24: 20
B130: 2 | C130: 1.4
B131: 2.5 | C131: 1.6
B132: 3 | C132: 1.7
B133: 3.5 | C133: 1.7
B134: 4.5 | C134: 2
B135: 5 | C135: 2.1
B136: 5.5 | C136: 2.1
B137: 6 | C137: 2.2
B138: 7 | C138: 2.4
B139: 8 | C139: 2.7
B140: 9 | C140: 2.8
B141: 10 | C141: 3.1
B142: 11 | C142: 3.2
B143: 12 | C143: 3.4
B144: 13 | C144: 3.6
B145: 14 | C145: 3.8
B146: 15 | C146: 3.8
B147: 16 | C147: 4
B148: 17 | C148: 4.2
B149: 18 | C149: 4.2 | H149: 41
B150: 19 | C150: 4.5 | H150: =H149/2/2*0.85 -> 8.7125
B151: 20 | C151: 4.7
B152: 21 | C152: 5.3
B153: 22 | C153: 5.4
B154: 23 | C154: 5.4
B155: 24 | C155: 5.4
B156: 25 | C156: 5.8
B157: 26 | C157: 5.8
B158: 27 | C158: 6.2
B159: 28 | C159: 6.2
B160: 29 | C160: 6.2
B161: 30 | C161: 7
B162: 31
B163: 32
B164: 33
B165: 34
B166: 35
